fUSD/lending_fUSD_20251012
["ID","MTS","AMOUNT","RATE_DAILY","PERIOD"]
[390987014,1760271104356,-150.0,0.00014917,2]
[390987015,1760271104366,-150.0,0.00014917,2]
[390987016,1760271104375,-150.0,0.00014917,2]
[390987017,1760271104385,-2048.0,0.00014917,2]
[390987018,1760271104394,-3389.0,0.00014917,2]
[390987019,1760271104403,-571.0,0.00014917,2]
[390987020,1760271104412,-604.0,0.00014917,2]
[390987021,1760271104422,-1177.37131776,0.00014917,2]
[390987023,1760271106103,-409.62868224,0.00014917,2]
[390987024,1760271106113,-556.0,0.00014917,2]
[390987025,1760271106127,-947.264,0.00014917,2]
[390987026,1760271106136,-168.0,0.00014928,2]
[390987027,1760271106146,-265.0,0.00014938,2]
[390987028,1760271106155,-156.324,0.00014969,2]
[390987029,1760271106164,-500.0,0.00014973,2]
[390987030,1760271106174,-500.0,0.00014973,2]
[390987031,1760271106183,-500.0,0.00014973,2]
[390987032,1760271106192,-500.0,0.00014973,2]
[390987033,1760271106201,-500.0,0.00014973,2]
[390987034,1760271106210,-168.0,0.00014983,2]
[390987035,1760271106220,-168.0,0.00014984,2]
[390987036,1760271106229,-292.52231777,0.00014991,2]
[390987037,1760271106428,-357.34018183,0.00014991,2]
[390987038,1760271106438,-665.9057422,0.00014991,2]
[390987039,1760271106450,-1666.92887226,0.00014991,2]
[390987040,1760271106461,-36.56891094,0.00014991,2]
[390987041,1760271106471,-1147.4833202,0.00014991,2]
[390987042,1760271106480,-318.08885533,0.00014998,2]
[390987043,1760271106492,-2815.28791683,0.00014998,2]
[390987044,1760271106713,-78196.39266234,0.00014998,2]
[390987045,1760271106723,-3168.287835,0.00014998,2]
[390987046,1760271106733,-153685.90703543,0.00014998,2]
[390987047,1760271109657,-410332.0907924,0.00014998,2]
[390987048,1760271109772,-635.6914335,0.00014998,2]
[390987050,1760271112212,-607.1643965,0.00014817,2]
[390987051,1760271112223,-2196.95654228,0.00014817,2]
[390987052,1760271112233,-40777.15433392,0.00014998,2]
[390987053,1760271112397,-3995.18068045,0.00014998,2]
[390987054,1760271112460,-17174.45947668,0.00014998,2]
[390987055,1760271112555,-2188.6,0.00014998,2]
[390987056,1760271112566,-1600.26,0.00014998,2]
[390987068,1760271229863,160.79,7.005e-05,2]
[390987069,1760271230004,160.79,7.706e-05,2]
[390987070,1760271230177,160.79,8.406e-05,2]
[390987071,1760271230361,160.79,9.107e-05,2]
[390987072,1760271230473,160.79,9.808e-05,2]
[390987073,1760271230774,160.79,0.00010508,2]
[390987074,1760271230907,160.79,0.00011209,2]
[390987075,1760271231147,160.79,0.00011909,2]
[390987077,1760271231308,160.79,0.0001261,2]
[390987079,1760271231460,160.79,0.0001331,2]
[390987098,1760271269822,4425.98795301,0.00027397,120]
[390987106,1760271313560,252.475724,0.00027397,120]
[390987243,1760271565784,2423.343351,0.00027397,120]
[390987475,1760271949206,302.91791898,0.00027397,120]
[390987476,1760271956873,3000.0,0.00027397,120]
[390987501,1760271981443,454.37687829,0.00027397,120]
[390987513,1760272025442,151.45895943,0.00027397,120]
[390987516,1760272029997,1000.0,0.00027397,120]
[390987521,1760272036564,302.91791886,0.00027397,120]
[390987528,1760272046272,302.91791886,0.00027397,120]
[390987535,1760272058180,302.91791886,0.00027397,120]
[390987559,1760272083704,454.37687829,0.00027397,120]
[390987582,1760272102679,151.45895943,0.00027397,120]
[390987610,1760272130220,1000.0,0.00027397,120]
[390987643,1760272176464,501.0,0.00027397,120]
[390987736,1760272289039,502.0,0.00027397,120]
[390987737,1760272309742,-666.0,0.00013902,3]
[390987738,1760272309752,-4726.46,0.00013903,2]
[390987739,1760272309766,-278.14,0.00013913,2]
[390987740,1760272309775,-51.65292905,0.00014011,2]
[390987741,1760272309787,-109.13707095,0.00014011,2]
[390987742,1760272309797,-596.53,0.0001413,2]
[390987743,1760272309808,-168.0,0.00014141,2]
[390987744,1760272309818,-168.0,0.00014163,2]
[390987745,1760272309827,-267.46074303,0.00014249,2]
[390987746,1760272309840,-168.0,0.00014448,2]
[390987747,1760272309850,-300.0,0.00014474,2]
[390987748,1760272309859,-965.96726397,0.00014475,2]
[390987749,1760272309937,-376.55368136,0.00014475,2]
[390987750,1760272310027,-105.47905467,0.00014475,2]
[390987751,1760272310037,-385.55699503,0.00014475,2]
[390987752,1760272310049,-342.48315084,0.00014475,2]
[390987753,1760272310214,-1886.60589414,0.00014475,2]
[390987754,1760272310223,-150.0,0.00014499,2]
[390987755,1760272310232,-500.0,0.00014499,2]
[390987756,1760272310241,-500.0,0.00014499,2]
[390987757,1760272310251,-500.0,0.00014499,2]
[390987758,1760272310260,-500.0,0.00014499,2]
[390987759,1760272310269,-500.0,0.00014499,2]
[390987760,1760272310279,-500.0,0.00014499,2]
[390987761,1760272310288,-500.0,0.00014499,2]
[390987762,1760272310298,-500.0,0.00014499,2]
[390987763,1760272310307,-387.88630996,0.00014499,2]
[390987764,1760272310317,-138373.0,0.000145,2]
[390987765,1760272310326,-1448.0,0.00014505,2]
[390987766,1760272310336,-1448.0,0.00014587,2]
[390987767,1760272310345,-188.85916819,0.000146,2]
[390987768,1760272310354,-1448.0,0.00014633,2]
[390987769,1760272310363,-1802.1524508,0.000148,2]
[390987770,1760272310424,-285.7530492,0.000148,2]
[390987771,1760272310433,-320.73408613,0.0001488,2]
[390987772,1760272310444,-3669.27502503,0.0001488,2]
[390987773,1760272310455,-155.30902913,0.0001488,2]
[390987774,1760272310464,-1000.0,0.0001489,2]
[390987775,1760272310473,-1000.0,0.0001489,2]
[390987776,1760272310483,-1000.0,0.0001489,2]
[390987777,1760272310492,-1000.0,0.0001489,2]
[390987778,1760272310501,-835.62710025,0.0001489,2]
[390987779,1760272310510,-1975.93790841,0.00014895,2]
[390987780,1760272310519,-153.77368821,0.00014896,2]
[390987781,1760272310528,-1000.0,0.00014898,2]
[390987782,1760272310537,-54241.8287,0.00014899,2]
[390987783,1760272310546,-5000.0,0.00014899,2]
[390987784,1760272310555,-625.0,0.000149,2]
[390987785,1760272310564,-625.0,0.000149,2]
[390987786,1760272310574,-173.33289364,0.000149,2]
[390987787,1760272310584,-204.13747464,0.000149,2]
[390987788,1760272310593,-188.85916819,0.000149,2]
[390987789,1760272310602,-1309.0,0.00014938,2]
[390987790,1760272310611,-1587.0,0.00014938,2]
[390987791,1760272310621,-604.0,0.00014938,2]
[390987792,1760272310630,-571.0,0.00014938,2]
[390987793,1760272310639,-816.0,0.00014938,2]
[390987794,1760272310648,-1182.0,0.00014938,2]
[390987795,1760272310657,-1892.0,0.00014938,2]
[390987796,1760272310666,-3389.0,0.00014938,2]
[390987797,1760272310675,-500.0,0.00014973,2]
[390987798,1760272310684,-500.0,0.00014973,2]
[390987799,1760272310693,-500.0,0.00014973,2]
[390987800,1760272310703,-500.0,0.00014973,2]
[390987801,1760272310712,-500.0,0.00014973,2]
[390987802,1760272310721,-156.325,0.00014973,2]
[390987803,1760272310730,-76476.73487553,0.0001499,2]
[390987804,1760272310739,-161.429471,0.0001499,2]
[390987805,1760272310748,-151.0,0.0001499,2]
[390987806,1760272310758,-151.0,0.0001499,2]
[390987807,1760272310770,-3649.0315129,0.00014991,2]
[390987808,1760272310779,-8626.0265048,0.00014995,2]
[390987809,1760272310788,-157.7397631,0.00014995,2]
[390987810,1760272310797,-8869.0296707,0.00014995,2]
[390987811,1760272310839,-1257.41320095,0.00014995,2]
[390987812,1760272310850,-1009.87494404,0.00014995,2]
[390987813,1760272311506,-572.77289877,0.00014995,2]
[390987814,1760272315500,503.0,0.00027397,120]
[390987824,1760272319343,-1975.9379084,0.00014896,2]
[390987825,1760272319352,-1975.9379084,0.00014896,2]
[390987826,1760272319362,-151.0,0.0001499,2]
[390987827,1760272319371,-5728.25302844,0.00014995,2]
[390987828,1760272319382,-4855.849758,0.00014998,2]
[390987829,1760272319393,-199.073467,0.00014998,2]
[390987830,1760272319402,-199.073467,0.00014998,2]
[390987831,1760272319411,-4855.849758,0.00014998,2]
[390987832,1760272319421,-5131.710393,0.00014998,2]
[390987833,1760272319432,-5131.710393,0.00014998,2]
[390987834,1760272319441,-167.261769,0.00014998,2]
[390987835,1760272319450,-167.261769,0.00014998,2]
[390987836,1760272319460,-163.080225,0.00014998,2]
[390987837,1760272319469,-163.080225,0.00014998,2]
[390987838,1760272319479,-153.164479,0.00014998,2]
[390987839,1760272319488,-153.164479,0.00014998,2]
[390987840,1760272319497,-2844.218562,0.00014998,2]
[390987841,1760272319506,-2844.218562,0.00014998,2]
[390987842,1760272319515,-1954.21724,0.00014998,2]
[390987843,1760272319526,-1000.0,0.00014999,2]
[390987844,1760272319535,-1000.0,0.00014999,2]
[390987845,1760272319545,-300.0,0.00014999,2]
[390987846,1760272319554,-300.0,0.00014999,2]
[390987847,1760272319565,-300.0,0.00014999,2]
[390987848,1760272319574,-300.0,0.00014999,2]
[390987849,1760272319583,-300.0,0.00014999,2]
[390987850,1760272319592,-300.0,0.00014999,2]
[390987851,1760272319601,-200.0,0.00014999,2]
[390987852,1760272319610,-4855.849758,0.00014999,2]
[390987853,1760272319619,-4855.849758,0.00014999,2]
[390987854,1760272319628,-199.073467,0.00014999,2]
[390987855,1760272319637,-199.073467,0.00014999,2]
[390987856,1760272319646,-5131.710393,0.00014999,2]
[390987857,1760272319655,-5131.710393,0.00014999,2]
[390987858,1760272319663,-167.261769,0.00014999,2]
[390987859,1760272319673,-167.261769,0.00014999,2]
[390987860,1760272319682,-163.080225,0.00014999,2]
[390987861,1760272319691,-163.080225,0.00014999,2]
[390987862,1760272319700,-153.164479,0.00014999,2]
[390987863,1760272319708,-153.164479,0.00014999,2]
[390987864,1760272319717,-2844.218562,0.00014999,2]
[390987865,1760272319725,-2844.218562,0.00014999,2]
[390987866,1760272319735,-150.0,0.00014999,2]
[390987867,1760272319744,-150.16697509,0.00014999,2]
[390987868,1760272319753,-300.0,0.00014999,2]
[390987869,1760272319764,-201.81837537,0.00014999,2]
[390987870,1760272319774,-150.0,0.00014999,2]
[390987871,1760272319783,-284.38831943,0.00014999,2]
[390987872,1760272319792,-152.690523,0.00014999,2]
[390987873,1760272319800,-151.0,0.00014999,2]
[390987874,1760272319810,-151.0,0.00014999,2]
[390987875,1760272319819,-151.0,0.00014999,2]
[390987876,1760272319829,-151.0,0.00014999,2]
[390987877,1760272319838,-151.0,0.00014999,2]
[390987878,1760272319847,-150.0,0.00014999,2]
[390987879,1760272319856,-150.0,0.00014999,2]
[390987880,1760272319865,-150.0,0.00014999,2]
[390987881,1760272319874,-150.0,0.00014999,2]
[390987882,1760272319883,-150.0,0.00014999,2]
[390987883,1760272319892,-500.0,0.00014999,2]
[390987884,1760272319902,-504.62408704,0.00014999,2]
[390987885,1760272319911,-151.0,0.00014999,2]
[390987886,1760272319921,-500.0,0.00014999,2]
[390987887,1760272319931,-151.0,0.00014999,2]
[390987888,1760272319939,-150.0,0.00014999,2]
[390987889,1760272319948,-500.0,0.00014999,2]
[390987890,1760272319957,-500.0,0.00014999,2]
[390987891,1760272319967,-500.0,0.00015,2]
[390987892,1760272319976,-505.0,0.00015,2]
[390987893,1760272319984,-129502.45189954,0.00015,2]
[390987894,1760272319997,-2465.79889979,0.00015,2]
[390987895,1760272320008,-7710.13493999,0.00015,2]
[390987896,1760272320022,-4743.56000066,0.00015,2]
[390987897,1760272320034,-6576.41379978,0.00015,2]
[390987898,1760272320045,-1108.22941123,0.00015,2]
[390987899,1760272323631,-1975.9379084,0.00014897,2]
[390987900,1760272323641,-2048.0,0.00014938,2]
[390987901,1760272323650,-151.0,0.0001499,2]
[390987902,1760272323659,-151.0,0.0001499,2]
[390987903,1760272323669,-151.0,0.00014999,2]
[390987904,1760272323678,-151.0,0.00014999,2]
[390987905,1760272323688,-584555.19677303,0.00015,2]
[390987906,1760272323698,-1505.89925555,0.00015,2]
[390987907,1760272323707,-291257.28364556,0.00015,7]
[390987908,1760272323716,-122622.61372832,0.00015,2]
[390987909,1760272323893,-150.0,0.00014999,2]
[390987910,1760272323902,-56020.0,0.00015,2]
[390987911,1760272323941,-448.80928647,0.00015,2]
[390987912,1760272326965,-150.0,0.00014999,2]
[390987913,1760272326974,-2985.32906941,0.00015,2]
[390987914,1760272329291,504.0,0.00027397,120]
[390987915,1760272341412,505.0,0.00027397,120]
[390987920,1760272440298,500.01,0.00027397,120]
[390987921,1760272450852,500.02,0.00027397,120]
[390987923,1760272459128,500.03,0.00027397,120]
[390987926,1760272466696,500.04,0.00027397,120]
[390987932,1760272584229,500.05,0.00027397,120]
[390987933,1760272593820,500.06,0.00027397,120]
[390987937,1760272602439,500.06,0.00027397,120]
[390987939,1760272618285,500.07,0.00027397,120]
[390987942,1760272624475,500.08,0.00027397,120]
[390987944,1760272643129,1000.01,0.00027397,120]
[390987945,1760272650262,1000.02,0.00027397,120]
[390987947,1760272660307,1000.03,0.00027397,120]
[390987972,1760272991323,-207.93908016,0.00014004,7]
[390987980,1760273066151,-42.06091984,0.00014004,7]
[390987981,1760273066172,-145.88101479,0.00014006,2]
[390987991,1760273139711,-296.0430083,0.00013699,2]
[390987994,1760273176517,158.0,0.0002515,120]
[390987995,1760273178347,158.0,0.00026408,120]
[390988002,1760273215366,-170.1569917,0.00013699,2]
[390988003,1760273215388,-5.78335556,0.00014005,2]
[390988011,1760273275934,2000.0,0.00027397,120]
[390988014,1760273290228,2000.0,0.00027397,120]
[390988020,1760273345546,1770.2,0.00013605,2]
[390988059,1760273419854,9766.16,0.00027397,120]
[390988141,1760273506488,500.0,0.00027397,120]
[390988154,1760273516464,500.0,0.00027397,120]
[390988163,1760273533042,500.0,0.00027397,120]
[390988168,1760273541546,-150.0,0.00013921,2]
[390988169,1760273541555,-160.77,0.00013946,2]
[390988170,1760273541565,-195.0,0.00014005,2]
[390988171,1760273541574,-11661.94898521,0.00014006,2]
[390988172,1760273541583,-168.0,0.00014317,2]
[390988173,1760273541592,-166.71,0.00014418,2]
[390988174,1760273541601,-375.0,0.00014618,2]
[390988175,1760273541611,-150.0,0.00014698,2]
[390988176,1760273541620,-9507.61,0.00014699,2]
[390988177,1760273541629,-773.68806873,0.00014699,2]
[390988178,1760273541638,-3494.05743063,0.00014699,2]
[390988179,1760273541647,-168.0,0.00014757,2]
[390988180,1760273541656,-1054.21551543,0.00014757,2]
[390988182,1760273548319,-784.0,0.00014757,2]
[390988183,1760273549493,-400.0,0.00014757,2]
[390988184,1760273549504,-1834.68316,0.00014757,2]
[390988185,1760273549516,-4375.90132457,0.00014757,2]
[390988186,1760273549525,-168.0,0.0001476,2]
[390988187,1760273549534,-1016.15080502,0.00014778,2]
[390988188,1760273549543,-533.0,0.00014802,2]
[390988189,1760273549554,-533.0,0.0001482,2]
[390988190,1760273549564,-154.70086544,0.00014899,2]
[390988191,1760273549574,-1000.0,0.000149,2]
[390988192,1760273549585,-1000.0,0.000149,2]
[390988193,1760273549594,-1000.0,0.000149,2]
[390988194,1760273549604,-1008.0,0.000149,2]
[390988195,1760273549613,-1000.0,0.000149,2]
[390988196,1760273549623,-1000.0,0.000149,3]
[390988197,1760273549633,-1000.0,0.000149,3]
[390988198,1760273549642,-1000.0,0.000149,2]
[390988199,1760273549651,-446.0,0.000149,2]
[390988200,1760273549661,-186.94167072,0.000149,2]
[390988201,1760273549670,-457.6090662,0.000149,2]
[390988202,1760273549679,-6886.01061162,0.000149,2]
[390988203,1760273549689,-4420.95187654,0.000149,2]
[390988204,1760273549698,-5000.0,0.000149,2]
[390988205,1760273549707,-856.58183418,0.000149,2]
[390988206,1760273549717,-8042.77530413,0.00014921,2]
[390988207,1760273549778,-424.58201349,0.00014921,2]
[390988208,1760273549788,-38339.31189636,0.00014941,2]
[390988209,1760273549797,-38339.31189636,0.00014947,2]
[390988210,1760273549808,-1266.0,0.00014947,2]
[390988211,1760273549818,-749.0,0.00014947,2]
[390988212,1760273549827,-386.47,0.00014947,2]
[390988213,1760273549836,-604.0,0.00014947,2]
[390988214,1760273549845,-571.0,0.00014947,2]
[390988215,1760273549854,-1309.0,0.00014947,2]
[390988216,1760273549863,-1587.0,0.00014947,2]
[390988217,1760273549872,-816.0,0.00014947,2]
[390988218,1760273549881,-460.874,0.00014947,2]
[390988219,1760273549890,-8467.35731762,0.00014954,2]
[390988220,1760273549900,-267.46074303,0.00014955,2]
[390988221,1760273549910,-8467.35731762,0.00014957,2]
[390988222,1760273549921,-38339.31189636,0.00014958,2]
[390988223,1760273549931,-150.0,0.00014965,2]
[390988224,1760273549940,-500.0,0.00014973,2]
[390988225,1760273549949,-500.0,0.00014973,2]
[390988226,1760273549959,-500.73964104,0.00014973,2]
[390988227,1760273549968,-339.31532798,0.00014973,2]
[390988228,1760273549978,-500.0,0.00014973,2]
[390988229,1760273549987,-500.0,0.00014973,2]
[390988230,1760273549997,-500.0,0.00014973,2]
[390988231,1760273550008,-500.0,0.00014973,2]
[390988232,1760273550018,-500.0,0.00014985,2]
[390988233,1760273550027,-156.325,0.0001499,2]
[390988234,1760273550037,-21306.4474001,0.00014995,2]
[390988235,1760273550047,-487.54292333,0.00014998,2]
[390988236,1760273550058,-179.33935412,0.00014999,2]
[390988237,1760273550069,-500.0,0.00014999,2]
[390988238,1760273550084,-206.53130777,0.00014999,2]
[390988239,1760273550094,-429.65670828,0.00014999,2]
[390988240,1760273550104,-322.47342123,0.00014999,2]
[390988241,1760273550113,-500.0,0.00014999,2]
[390988242,1760273550122,-500.0,0.00014999,2]
[390988243,1760273550134,-300.0,0.00014999,2]
[390988244,1760273550144,-6992.423653,0.00014999,2]
[390988245,1760273550154,-6992.423653,0.00014999,2]
[390988246,1760273550163,-6992.423653,0.00014999,2]
[390988247,1760273550173,-286.665793,0.00014999,2]
[390988248,1760273550183,-286.665793,0.00014999,2]
[390988249,1760273550194,-286.665793,0.00014999,2]
[390988250,1760273550205,-214.764112,0.00014999,2]
[390988251,1760273550214,-189.923954,0.00014999,2]
[390988252,1760273550225,-189.923954,0.00014999,2]
[390988253,1760273550235,-189.923954,0.00014999,2]
[390988254,1760273550244,-7389.662967,0.00014999,2]
[390988255,1760273550255,-7389.662967,0.00014999,2]
[390988256,1760273550264,-7389.662967,0.00014999,2]
[390988257,1760273550276,-4095.67473,0.00014999,2]
[390988258,1760273550286,-4095.67473,0.00014999,2]
[390988259,1760273550295,-4095.67473,0.00014999,2]
[390988260,1760273550306,-150.0,0.00014999,2]
[390988261,1760273550320,-500.0,0.00014999,2]
[390988262,1760273550331,-153.62004006,0.00014999,2]
[390988263,1760273550340,-987707.209878,0.00015,2]
[390988264,1760273550350,-445590.25506231,0.00015,2]
[390988265,1760273550477,-2001.78000016,0.00015,2]
[390988271,1760273553376,-461751.12397728,0.00015,2]
[390988273,1760273557300,-11636.86735365,0.00015,2]
[390988294,1760273590911,1191.31,0.00027397,120]
[390988456,1760273755475,5000.0,0.00027397,120]
[390988499,1760273822928,159.0,0.0002515,120]
[390988500,1760273823676,159.0,0.00026408,120]
[390988523,1760273898271,9359.23,0.00027397,120]
[390988564,1760274202504,1154.09,0.00027397,120]
[390988565,1760274208289,173.57,6.912e-05,2]
[390988567,1760274208423,173.57,8.64e-05,2]
[390988568,1760274208481,173.57,0.00010369,2]
[390988569,1760274208626,173.57,0.00012097,2]
[390988578,1760274321074,-201.66647521,0.00013608,2]
[390988581,1760274355809,516.0,0.0002739,120]
[390988582,1760274368817,8969.27,0.00027397,120]
[390988584,1760274378722,845.58416915,0.00027397,120]
[390988594,1760274435746,-63.33352479,0.00013608,2]
[390988595,1760274435768,-115.1477162,0.00013741,2]
[390988600,1760274510213,168.0,0.0001339,2]
[390988601,1760274515226,168.0,0.00013604,2]
[390988603,1760274552497,-47.87491011,0.00013741,2]
[390988931,1760274663342,-219.53479784,0.00013688,2]
[390988932,1760274663364,-171.65884178,0.00013688,2]
[390988941,1760274706971,200.00048639,0.00027397,120]
[390988958,1760274728671,-30.22387385,0.00013688,2]
[390988959,1760274728681,-200.0,0.00013688,2]
[390988960,1760274728690,-203.14222053,0.00013688,2]
[390988961,1760274728700,-151.0,0.00013688,2]
[390988962,1760274728709,-151.0,0.00013688,2]
[390988963,1760274728718,-151.0,0.00013688,2]
[390988964,1760274728727,-151.0,0.00013688,2]
[390988965,1760274728737,-151.0,0.00013688,2]
[390988966,1760274728746,-151.0,0.00013688,2]
[390988967,1760274728755,-151.0,0.00013688,2]
[390988968,1760274728765,-151.0,0.00013688,2]
[390988969,1760274728775,-151.0,0.00013688,2]
[390988970,1760274728784,-151.0,0.00013688,2]
[390988971,1760274728794,-226.02260155,0.00013688,2]
[390988972,1760274728805,-640.97,0.00013766,2]
[390988973,1760274728814,-173.57,0.00013825,2]
[390988974,1760274728824,-1600.0,0.00013836,2]
[390988975,1760274728833,-250.0,0.00013841,2]
[390988976,1760274728843,-267.6535,0.00013846,2]
[390988977,1760274728853,-200.0,0.00013862,2]
[390988978,1760274728863,-296.91780407,0.00013868,2]
[390988979,1760274728875,-812.32219593,0.00013868,2]
[390988980,1760274728886,-168.0,0.00013948,2]
[390988981,1760274728895,-168.0,0.00013992,2]
[390988982,1760274728904,-265.0,0.00013995,2]
[390988983,1760274728914,-168.0,0.00014128,2]
[390988984,1760274728924,-150.0,0.00014247,2]
[390988985,1760274728933,-845.07116759,0.00014248,2]
[390988986,1760274728943,-267.46074303,0.00014248,2]
[390988987,1760274728953,-151.0,0.00014248,2]
[390988988,1760274728962,-91.39335265,0.00014248,2]
[390988989,1760274729009,-59.60664735,0.00014248,2]
[390988990,1760274729019,-151.0,0.00014248,2]
[390988991,1760274729028,-151.0,0.00014248,2]
[390988992,1760274729038,-151.0,0.00014248,2]
[390988993,1760274729047,-151.0,0.00014248,2]
[390988994,1760274729058,-151.0,0.00014248,2]
[390988995,1760274729069,-151.0,0.00014248,2]
[390988996,1760274729078,-322.6107,0.00014248,2]
[390988997,1760274729088,-193.5333213,0.00014248,2]
[390988998,1760274729098,-176.0855737,0.00014248,2]
[390988999,1760274729107,-151.0,0.00014248,2]
[390989000,1760274729117,-151.0,0.00014248,2]
[390989001,1760274729126,-500.0,0.00014248,2]
[390989002,1760274729136,-500.0,0.00014248,2]
[390989003,1760274729146,-577.41119917,0.00014248,2]
[390989004,1760274729156,-168.0,0.00014293,2]
[390989005,1760274729165,-168.0,0.00014309,2]
[390989006,1760274729489,-168.0,0.00014441,2]
[390989007,1760274729537,-5888.0,0.00014534,2]
[390989008,1760274729547,-236.0,0.00014559,2]
[390989009,1760274729560,-1000.0,0.00014652,2]
[390989010,1760274729570,-5888.0,0.00014655,2]
[390989011,1760274729580,-573.25,0.0001469,2]
[390989012,1760274729591,-1425.0,0.00014692,2]
[390989013,1760274729601,-1200.0,0.000147,2]
[390989014,1760274729611,-200.0,0.0001471,2]
[390989015,1760274729620,-1425.0,0.0001471,2]
[390989016,1760274729633,-1425.0,0.0001472,2]
[390989017,1760274729642,-1000.0,0.00014724,2]
[390989018,1760274729652,-1425.0,0.00014728,2]
[390989019,1760274729661,-195.0,0.00014729,2]
[390989020,1760274729671,-217.64815671,0.00014729,2]
[390989021,1760274729680,-1073.31541395,0.00014729,2]
[390989022,1760274729690,-1211.65861431,0.00014729,2]
[390989023,1760274729699,-1425.0,0.0001475,2]
[390989024,1760274729708,-852.26004279,0.00014756,2]
[390989025,1760274729718,-1425.0,0.00014762,2]
[390989026,1760274729727,-1425.0,0.00014782,2]
[390989027,1760274729739,-150.0,0.00014782,2]
[390989028,1760274729748,-1425.0,0.00014786,2]
[390989029,1760274729758,-1000.0,0.00014795,2]
[390989030,1760274729768,-151.0,0.00014796,2]
[390989031,1760274729777,-1425.0,0.00014797,2]
[390989032,1760274729787,-1425.0,0.00014798,2]
[390989033,1760274729797,-1425.0,0.00014807,2]
[390989034,1760274729809,-200.0,0.0001481,2]
[390989035,1760274729818,-300.0,0.00014811,2]
[390989036,1760274729828,-1425.0,0.00014812,2]
[390989037,1760274729838,-1425.0,0.00014813,2]
[390989038,1760274729847,-1425.0,0.00014822,2]
[390989039,1760274729857,-357.33997224,0.00014824,2]
[390989040,1760274729867,-1000.0,0.00014825,2]
[390989041,1760274729876,-468.18146038,0.00014835,2]
[390989045,1760274734505,-901.0,0.00014831,2]
[390989046,1760274734515,-316.4,0.00014835,2]
[390989047,1760274736101,-215.41853962,0.00014835,2]
[390989048,1760274736111,-69.39021038,0.0001485,2]
[390989049,1760274738449,-269.7972,0.0001485,2]
[390989050,1760274738603,-1085.81258962,0.0001485,2]
[390989051,1760274738614,-1425.0,0.00014854,2]
[390989052,1760274738625,-1425.0,0.00014854,2]
[390989053,1760274738636,-150.0,0.00014856,2]
[390989054,1760274738645,-1425.0,0.00014859,2]
[390989055,1760274738654,-151.61383506,0.00014867,2]
[390989056,1760274738663,-1425.0,0.00014873,2]
[390989057,1760274738673,-1425.0,0.00014891,2]
[390989058,1760274738683,-1425.0,0.00014897,2]
[390989059,1760274738692,-361.75419586,0.00014899,2]
[390989060,1760274738702,-361.75419585,0.00014899,2]
[390989061,1760274738711,-361.75419585,0.00014899,2]
[390989062,1760274738721,-361.75419585,0.00014899,2]
[390989063,1760274738731,-361.75419585,0.00014899,2]
[390989064,1760274738739,-361.75419585,0.000149,2]
[390989065,1760274738749,-361.75419585,0.000149,2]
[390989066,1760274738760,-361.75419585,0.000149,2]
[390989067,1760274738769,-361.75419585,0.000149,2]
[390989068,1760274738778,-158.1709445,0.000149,2]
[390989069,1760274738788,-9094.56315084,0.000149,2]
[390989070,1760274738797,-229.32149352,0.000149,2]
[390989071,1760274738807,-2921.56019647,0.000149,2]
[390989073,1760274741158,-2078.43980353,0.000149,2]
[390989074,1760274741168,-160.16019647,0.000149,2]
[390989190,1760274847673,8595.55,0.00027397,120]
[390989487,1760275282245,-207.25423724,0.00013688,2]